bitfinex-derivatives/quotes_ETHF0:USTF0_20250428
["timestamp","ask_amount","ask_price","bid_price","bid_amount"]
[1745840520416,26.99764784,1823.7,1823.6,2.68534]
[1745840521015,26.99760814,1823.7,1823.6,2.68534]
[1745840523225,27.83070814,1823.7,1823.6,2.68534]
[1745840523527,16.84371469,1823.7,1823.6,2.68534]
[1745840523726,1.09634,1823.6,1823.5,0.8282]
[1745840523918,3.10611567,1823.6,1823.5,1.9246]
[1745840524321,3.10611567,1823.6,1823.5,1.0964]
[1745840524729,2.00977567,1823.6,1823.5,1.0964]
[1745840525421,0.43807567,1823.6,1823.5,1.0964]
[1745840525622,0.43807567,1823.6,1823.5,3.5529]
[1745840525822,2.07417567,1823.6,1823.5,3.5529]
[1745840526925,0.43807567,1823.6,1823.5,3.5529]
[1745840530429,12.77575902,1823.7,1823.6,1.09634]
[1745840530617,13.21411881,1823.7,1823.6,6.79544]
[1745840530818,13.21411881,1823.7,1823.6,47.59544]
[1745840531223,13.21411881,1823.7,1823.6,44.38764]
[1745840531425,13.21411881,1823.7,1823.6,3.58764]
[1745840531723,14.31039881,1823.7,1823.6,2.74604]
[1745840531926,13.21411881,1823.7,1823.6,43.54604]
[1745840532329,13.21411881,1823.7,1823.6,2.74604]
[1745840532626,14.83711881,1823.7,1823.6,2.74604]
[1745840532932,1.09634,1823.6,1823.5,42.69476]
[1745840533232,2.06135979,1823.6,1823.5,1.89476]
[1745840533823,0.43835979,1823.6,1823.5,1.89476]
[1745840534030,0.43835979,1823.6,1823.5,3.61606]
[1745840534433,17.02589071,1823.9,1823.8,1.09622]
[1745840534734,14.24122185,1823.9,1823.8,1.09622]
[1745840535529,11.40646185,1823.9,1823.8,1.09622]
[1745840535833,0.42315114,1823.9,1823.8,3.60742]
[1745840536033,1.51931114,1823.9,1823.8,1.09622]
[1745840536230,3.25791114,1823.9,1823.8,1.09622]
[1745840536432,3.25805579,1823.9,1823.8,1.09622]
[1745840537527,3.25803275,1823.9,1823.8,1.09622]
[1745840537728,3.26227429,1823.9,1823.8,1.09622]
[1745840538223,0.42751429,1823.9,1823.8,1.09622]
[1745840538427,1.52365179,1823.9,1823.8,1.09622]
[1745840538638,3.15475179,1823.9,1823.8,1.09622]
[1745840539640,2.05859179,1823.9,1823.8,1.09622]
[1745840539827,0.42749179,1823.9,1823.8,1.91712]
[1745840541534,2.04739179,1823.9,1823.8,1.91712]
[1745840541934,3.14355179,1823.9,1823.8,1.09622]
[1745840542933,3.14346592,1823.9,1823.8,1.09622]
[1745840543129,0.427405,1823.9,1823.8,1.09622]
[1745840543340,0.42738353,1823.9,1823.8,1.09622]
[1745840543634,1.10040154,1823.9,1823.8,1.09622]
[1745840543833,1.52356864,1823.9,1823.8,1.09622]
[1745840544031,1.52356846,1823.9,1823.8,1.09622]
[1745840544234,1.52359954,1823.9,1823.8,1.09622]
[1745840544535,1.52359858,1823.9,1823.8,1.09622]
[1745840544735,1.52359619,1823.9,1823.8,1.09622]
[1745840544928,1.09622,1823.8,1823.7,2.70243]
[1745840545133,1.51941175,1823.8,1823.7,2.70243]
[1745840545536,1.51945234,1823.8,1823.7,2.70243]
[1745840545729,1.09622,1823.8,1823.7,2.70243]
[1745840545930,1.51945212,1823.8,1823.7,2.70243]
[1745840546130,1.09622,1823.8,1823.7,2.70243]
[1745840546337,1.09648,1823.5,1823.4,4.30424]
[1745840546638,1.51975501,1823.5,1823.4,6.74614]
[1745840546840,0.42329107,1823.5,1823.4,6.74614]
[1745840547039,1.09638,1823.6,1823.5,1.0964]
[1745840547240,1.51965845,1823.6,1823.5,2.7458]
[1745840547426,1.51964816,1823.6,1823.5,2.7458]
[1745840547631,1.51964751,1823.6,1823.5,2.7458]
[1745840547832,0.4232653,1823.6,1823.5,2.7458]
[1745840548040,12.07955551,1823.7,1823.6,1.09634]
[1745840548339,11.40648589,1823.7,1823.6,3.59104]
[1745840549032,12.50276589,1823.7,1823.6,3.59104]
[1745840549841,1.51952038,1823.7,1823.6,3.59104]
[1745840550436,1.51952038,1823.7,1823.6,2.4947]
[1745840550635,1.51952038,1823.7,1823.6,3.59104]
[1745840550928,3.20602038,1823.7,1823.6,3.59104]
[1745840551133,3.20602369,1823.7,1823.6,3.59104]
[1745840552641,3.20602369,1823.7,1823.6,2.4947]
[1745840552942,3.20602369,1823.7,1823.6,3.59104]
[1745840553143,3.20602369,1823.7,1823.4,4.0003]
[1745840553144,1.0964,1823.5,1823.4,5.09672]
[1745840553345,1.09646,1823.4,1823.3,1.91202]
[1745840553531,1.51970369,1823.4,1823.3,3.55902]
[1745840553935,0.42324369,1823.4,1823.3,3.55902]
[1745840554636,1.51970369,1823.4,1823.3,3.55902]
[1745840555142,0.42324369,1823.4,1823.3,3.55902]
[1745840556237,1.09641,1823.5,1823.4,1.09646]
[1745840556438,1.51952581,1823.5,1823.4,2.72876]
[1745840556741,1.51952581,1823.5,1823.4,5.93656]
[1745840557045,1.51952581,1823.5,1823.4,4.8401]
[1745840557543,1.09646,1823.4,1823.3,1.91202]
[1745840557734,1.51957581,1823.4,1823.3,3.65652]
[1745840558647,3.22617581,1823.4,1823.3,3.65652]
[1745840559243,3.22607047,1823.4,1823.3,3.65652]
[1745840560542,0.42301047,1823.4,1823.3,3.65652]
[1745840561042,1.51947047,1823.4,1823.3,3.65652]
[1745840561241,1.09676,1823.0,1822.8,3.2078]
[1745840561447,1.0967,1823.0,1822.9,3.3354]
[1745840561645,1.51953286,1823.0,1822.9,4.43216]
[1745840562051,1.51958058,1823.0,1822.9,4.43216]
[1745840562239,1.0967,1823.0,1822.9,4.43216]
[1745840562440,1.51956865,1823.0,1822.9,3.3354]
[1745840562637,1.09682,1822.8,1822.7,1.09685]
[1745840562843,1.51970306,1822.8,1822.7,2.77625]
[1745840563042,1.09688,1822.7,1822.6,6.87449]
[1745840563242,1.51977576,1822.7,1822.6,6.87449]
[1745840563549,1.51974956,1822.7,1822.6,6.87449]
[1745840563739,1.51933395,1822.7,1822.6,6.87449]
[1745840563937,1.51933395,1822.7,1822.6,5.7776]
[1745840564141,1.51933395,1822.7,1822.6,6.87454]
[1745840565047,1.51890238,1822.7,1822.6,6.87454]
[1745840565548,0.42202238,1822.7,1822.6,6.87454]
[1745840565852,1.51890238,1822.7,1822.6,6.87454]
[1745840566242,1.09688,1822.7,1822.6,6.87454]
[1745840566543,1.09688,1822.7,1822.6,5.7776]
[1745840566739,1.09688,1822.7,1822.6,3.3068]
[1745840566944,5.28368,1822.7,1822.6,0.099]
[1745840567143,5.70536814,1822.7,1822.6,1.19594]
[1745840567351,4.02568814,1822.7,1822.6,1.19594]
[1745840568441,4.02568814,1822.7,1822.6,2.04724]
[1745840568640,3.54059,1822.9,1822.6,2.04724]
[1745840568845,7.14559,1822.9,1822.8,1.09682]
[1745840569243,7.14559,1822.9,1822.8,2.80342]
[1745840569437,15.28778551,1823.0,1822.9,1.09676]
[1745840569641,19.31394484,1823.0,1822.9,2.80336]
[1745840569848,14.61220484,1823.0,1822.9,2.80336]
[1745840570037,11.40440484,1823.0,1822.9,2.80336]
[1745840570438,11.40440484,1823.0,1822.9,3.65466]
[1745840571043,10.98324551,1823.0,1822.9,3.65466]
[1745840571249,1.51782417,1823.0,1822.9,3.65466]
[1745840571547,4.03232417,1823.0,1822.9,2.80336]
[1745840571749,0.42112417,1823.0,1822.9,2.80336]
[1745840573144,2.76344,1823.2,1823.1,1.09664]
[1745840573345,3.18473295,1823.2,1823.1,1.09664]
[1745840574150,2.08809295,1823.2,1822.8,5.94982]
[1745840574345,3.14465295,1823.1,1823.0,1.09664]
[1745840575055,2.04819463,1823.1,1823.0,1.09664]
[1745840577258,2.04819463,1823.1,1823.0,2.82584]
[1745840577458,2.04819463,1823.1,1823.0,3.67054]
[1745840578561,0.42149463,1823.1,1823.0,3.67054]
[1745840579052,1.587,1823.2,1823.1,1.09664]
[1745840579249,2.00864823,1823.2,1823.1,1.09664]
[1745840579446,3.10522823,1823.2,1823.1,2.83854]
[1745840579952,2.68358,1823.2,1823.1,2.83854]
[1745840580357,15.27792,1823.2,1822.5,3.2078]
[1745840580563,4.30467,1822.8,1822.7,1.09683]
[1745840580861,8.34864494,1822.8,1822.7,1.09683]
[1745840581160,7.25177494,1822.8,1822.7,1.09683]
[1745840581872,9.93739494,1822.8,1822.7,2.72323]
[1745840582168,9.93745692,1822.8,1822.7,2.72323]
[1745840582463,9.93751128,1822.8,1822.7,2.72323]
[1745840582664,9.93751128,1822.8,1822.7,1.09683]
[1745840584366,8.84069128,1822.8,1822.6,1.7254]
[1745840584666,3.10777128,1822.7,1822.6,0.099]
[1745840586468,3.10788827,1822.7,1822.6,0.099]
[1745840588870,1.097,1822.6,1822.5,1.09698]
[1745840589064,6.12520827,1822.6,1822.5,1.09698]
[1745840589259,5.28860827,1822.6,1822.5,1.09698]
[1745840589672,6.38554827,1822.6,1822.5,1.09698]
[1745840589864,5.28860827,1822.6,1822.5,1.09698]
[1745840590370,5.28860827,1822.6,1822.5,2.80138]
[1745840590762,5.28860827,1822.6,1822.4,1.7143]
[1745840590763,1.097,1822.5,1822.4,1.7143]
[1745840590967,4.04520827,1822.5,1822.4,2.81136]
[1745840591167,4.04542768,1822.5,1822.4,2.81136]
[1745840591473,3.623,1822.5,1822.4,2.81136]
[1745840591670,5.73579517,1822.5,1822.4,2.81136]
[1745840591862,5.3133,1822.5,1822.4,2.81136]
[1745840592067,5.7357551,1822.5,1822.4,2.81136]
[1745840592470,4.0454551,1822.5,1822.4,2.81136]
[1745840593872,0.4224551,1822.5,1822.4,7.81136]
[1745840594263,0.4224551,1822.5,1822.4,11.61336]
[1745840594671,0.4224551,1822.5,1822.4,6.61336]
[1745840595377,0.4224551,1822.5,1822.4,11.61336]
[1745840596276,0.4224551,1822.5,1822.4,6.61336]
[1745840597477,0.4224551,1822.5,1822.4,11.61336]
[1745840597672,0.4224551,1822.5,1822.4,6.61336]
[1745840598276,3.2078,1822.8,1822.7,1.09688]
[1745840601479,14.19104551,1823.1,1823.0,1.0967]
[1745840601682,9.76313551,1823.1,1823.0,1.0967]
[1745840601872,8.81606061,1823.1,1823.0,1.0967]
[1745840602177,8.81606061,1823.1,1823.0,6.5547]
[1745840603171,6.61907061,1823.1,1823.0,11.5547]
[1745840603977,3.16768061,1823.1,1823.0,11.5547]
[1745840604177,6.1e-07,1823.1,1823.0,11.5547]
[1745840604882,3.622,1823.6,1823.5,1.0964]
[1745840605079,19.60980056,1823.9,1823.6,2.74079]
[1745840605282,21.15237545,1823.9,1823.8,1.09622]
[1745840605473,20.70596056,1823.9,1823.8,1.09622]
[1745840605675,19.60980056,1823.9,1823.8,1.09622]
[1745840606777,16.40200056,1823.9,1823.8,1.09622]
[1745840606983,12.78000056,1823.9,1823.8,1.92852]
[1745840607184,12.78000056,1823.9,1823.8,6.00462]
[1745840608584,0.00424154,1823.9,1823.8,7.73772]
[1745840609187,0.00424154,1823.9,1823.8,11.53972]
[1745840610186,0.00424154,1823.9,1823.8,7.73772]
[1745840610577,1.54e-06,1823.9,1823.8,7.73772]
[1745840610782,1.54e-06,1823.9,1823.8,12.73772]
[1745840611185,1.54e-06,1823.9,1823.8,11.53972]
[1745840611983,1.54e-06,1823.9,1823.8,16.53972]
[1745840612286,1.54e-06,1823.9,1823.8,20.19572]
[1745840612988,1.54e-06,1823.9,1823.8,20.62485058]
[1745840613394,3.656,1824.6,1824.5,1.0958]
[1745840614284,4.0358,1824.9,1824.6,2.73924]
[1745840614492,8.78636,1824.9,1824.8,1.09562]
[1745840614692,1.09566,1824.8,1824.7,1.09562]
[1745840615090,5.0,1824.8,1824.7,1.09562]
[1745840615483,6.09562,1824.8,1824.7,1.09562]
[1745840616092,5.0,1824.8,1824.7,1.09562]
[1745840616283,7.6908,1824.9,1824.8,1.09562]
[1745840619193,3.2078,1825.1,1824.8,6.57374]
[1745840619494,3.2078,1825.1,1825.0,1.0955]
[1745840620593,1.09552,1825.0,1824.9,1.09551]
[1745840620794,1.09561,1824.9,1824.8,1.09561]
[1745840620997,1.09556,1824.9,1824.8,1.09561]
[1745840621501,1.09555,1825.0,1824.9,1.09551]
[1745840623895,2.72405,1825.0,1824.9,1.09551]
[1745840624096,3.2078,1825.1,1825.0,1.0955]
[1745840624296,5.56802,1825.2,1825.1,1.09544]
[1745840625395,1.09551,1825.1,1825.0,1.09545]
[1745840625698,1.09556,1825.0,1824.9,1.09552]
[1745840627000,3.7864,1825.1,1825.0,1.0955]
[1745840627001,1.67408,1825.1,1825.0,1.0955]
[1745840627505,0.5786,1825.1,1825.0,1.0955]
[1745840627800,5.568,1825.2,1825.1,1.09544]
[1745840628302,3.2078,1825.5,1825.0,2.73862]
[1745840628501,1.09532,1825.4,1825.3,1.09527]
[1745840628702,5.74865,1825.5,1825.4,1.09526]
[1745840629196,1.0953,1825.4,1825.3,1.09526]
[1745840630410,1.09537,1825.3,1825.2,1.09533]
[1745840630595,1.09543,1825.2,1825.1,1.09539]
[1745840630793,6.39122,1825.4,1825.1,1.09539]
[1745840630994,1.09542,1825.2,1825.1,1.09539]
[1745840632200,1.09534,1825.3,1825.2,1.09532]
[1745840632502,4.74831,1825.4,1825.3,1.09532]
[1745840632706,4.2316,1825.4,1824.9,6.76119]
[1745840633001,1.09543,1825.2,1825.1,1.09539]
[1745840633202,1.09535,1825.3,1825.2,1.09532]
[1745840633402,5.32692,1825.4,1825.3,1.09532]
[1745840633700,1.09537,1825.3,1825.2,1.09533]
[1745840634395,6.96987,1825.4,1824.9,6.4776]
[1745840634694,1.09548,1825.1,1825.0,1.09544]
[1745840635295,2.73843,1825.3,1825.1,1.0954]
[1745840635296,1.09544,1825.2,1825.1,1.0954]
[1745840636498,4.74834,1825.4,1825.3,1.09532]
[1745840636896,4.74831,1825.4,1825.3,1.09532]
[1745840638698,5.47516,1825.8,1825.3,1.09532]
[1745840638899,0.02363161,2537.4,1825.3,1.09532]
[1745840638900,18.74243347,1827.6,1826.6,3.2078]
[1745840639200,23.77694725,1829.1,1827.5,44.0078]
[1745840639392,0.44246834,1828.7,1828.3,3.2078]
[1745840639591,4.468,1828.6,1828.3,3.2078]
[1745840639797,4.468,1828.6,1828.0,3.2078]
[1745840640102,4.688,1828.3,1828.1,3.2078]
[1745840640598,12.8958,1828.3,1828.0,3.802]
[1745840640791,1.09364,1828.1,1828.0,0.83109971]
[1745840640991,1.09359,1828.2,1828.0,0.83109971]
[1745840641204,4.686,1828.1,1827.7,3.2078]
[1745840641404,7.8938,1828.1,1827.7,3.2078]
[1745840641605,8.9875,1828.1,1827.7,3.2078]
[1745840641802,4.686,1828.1,1827.7,3.2078]
[1745840642101,3.802,1828.2,1827.9,4.30156]
[1745840642304,3.802,1828.1,1828.0,3.2078]
[1745840642606,3.802,1828.1,1827.8,4.30159]
[1745840643001,3.802,1828.1,1827.9,1.09376]
[1745840643306,4.686,1828.0,1827.9,1.09374]
[1745840643604,6.3922,1828.0,1827.9,1.09374]
[1745840643809,6.3902,1828.0,1827.9,1.09374]
[1745840644105,7.8918,1828.6,1827.8,3.2078]
[1745840644295,1.09341,1828.5,1828.2,3.2078]
[1745840644493,9.598,1828.4,1828.0,3.2078]
[1745840644697,1.09361,1828.2,1827.8,4.3016]
[1745840644898,1.7062,1828.1,1827.8,3.2078]
[1745840645201,1.7062,1828.1,1827.6,3.2078]
[1745840645411,4.684,1828.0,1827.6,3.2078]
[1745840645700,2.8,1827.9,1827.6,3.2078]
[1745840645903,1.7062,1827.9,1827.6,3.2078]
[1745840646107,4.683,1827.8,1827.7,2.66748]
[1745840646298,1.7062,1827.9,1827.8,1.09382]
[1745840646606,6.3892,1827.9,1827.8,1.09382]
[1745840647207,10.1912,1827.9,1827.7,5.87525]
[1745840648004,10.1912,1827.9,1827.7,3.2078]
[1745840648201,10.1912,1827.9,1827.5,3.2078]
[1745840648399,1.09387,1827.8,1827.5,4.30178]
[1745840648601,1.7322,1827.7,1827.5,4.30176]
[1745840649002,1.7322,1827.7,1827.5,3.2078]
[1745840649203,1.09394,1827.6,1827.5,3.2078]
[1745840649404,6.62812,1827.7,1827.5,3.2078]
[1745840649607,6.62812,1827.7,1827.5,4.3018]
[1745840649608,5.5342,1827.7,1827.5,4.3018]
[1745840649903,3.802,1827.7,1827.6,1.09394]
[1745840650106,8.485,1827.7,1827.5,3.2078]
[1745840650406,4.683,1827.7,1827.6,1.09394]
[1745840650601,4.683,1827.7,1827.5,4.30178]
[1745840650602,5.77688,1827.7,1827.5,4.30178]
[1745840650909,1.6258,1827.6,1827.5,4.30178]
[1745840651107,1.6258,1827.6,1826.9,44.0078]
[1745840651312,1.6258,1827.6,1827.0,1.09425]
[1745840651513,1.0941,1827.4,1827.2,1.09418]
[1745840651716,7.40297,1827.3,1827.1,1.09424]
[1745840651906,1.09421,1827.2,1827.0,1.09429]
[1745840652211,1.651,1827.1,1827.0,1.09429]
[1745840652508,4.89615,1827.3,1827.1,1.0942]
[1745840652708,2.74522,1827.2,1827.0,1.09429]
[1745840653205,1.0943,1827.0,1826.9,3.2078]
[1745840653415,5.7773,1827.0,1826.9,3.2078]
[1745840654015,5.453,1827.2,1826.9,3.2078]
[1745840654311,5.453,1827.2,1827.1,4.30204]
[1745840654312,3.802,1827.2,1827.1,4.30204]
[1745840654706,3.802,1827.2,1827.1,1.09424]
[1745840654902,3.802,1827.2,1827.1,4.30204]
[1745840655305,1.8647,1827.3,1827.2,1.09418]
[1745840655507,1.8647,1827.3,1827.2,2.66538]
[1745840656310,1.8647,1827.3,1827.1,3.2078]
[1745840656520,1.6425,1827.2,1827.1,4.30204]
[1745840656810,1.6425,1827.2,1827.1,1.09424]
[1745840657412,6.3255,1827.2,1827.1,1.09424]
[1745840657619,6.3255,1827.2,1827.1,4.30204]
[1745840658512,7.41968,1827.2,1827.1,1.09424]
[1745840658906,7.41968,1827.2,1827.1,3.2078]
[1745840659103,1.09429,1827.1,1826.9,3.2078]
[1745840659318,1.6766,1827.0,1826.9,4.30216]
[1745840659512,2.7709,1827.0,1826.9,4.30216]
[1745840659713,7.4539,1827.0,1826.9,4.30216]
[1745840659912,1.6766,1827.0,1826.9,3.2078]
[1745840660215,1.0943,1827.0,1826.9,4.30213]
[1745840660423,5.77729,1827.1,1826.9,3.2078]
[1745840660611,1.6766,1827.0,1826.9,4.30216]
[1745840660816,2.7709,1827.0,1826.9,4.30216]
[1745840661112,4.683,1827.1,1826.9,3.2078]
[1745840661412,1.09442,1826.8,1826.7,1.6012]
[1745840661609,1.09442,1826.8,1826.7,3.2078]
[1745840661811,5.77742,1826.8,1826.7,3.2078]
[1745840662320,5.47301,1826.6,1825.7,3.2078]
[1745840662513,1.09489,1826.1,1826.0,1.0949]
[1745840663018,6.3289,1826.2,1825.9,1.7376]
[1745840663219,2.74075,1826.1,1826.0,1.09485]
[1745840663515,1.6459,1826.1,1826.0,1.09485]
[1745840663713,1.09484,1826.1,1826.0,1.09485]
[1745840664514,2.73728,1826.0,1825.5,4.8466]
[1745840664813,1.09504,1825.8,1825.7,1.09508]
[1745840665020,1.09506,1825.8,1825.7,1.09506]
[1745840665420,2.76958,1825.9,1825.8,1.09502]
[1745840665622,1.6746,1825.9,1825.7,1.6161]
[1745840665920,1.09502,1825.8,1825.7,2.71114]
[1745840666215,1.6746,1825.9,1825.7,1.6161]
[1745840666413,1.09502,1825.8,1825.7,2.71114]
[1745840666811,1.09514,1825.6,1825.5,3.2078]
[1745840667015,1.09523,1825.5,1825.4,1.09523]
[1745840667209,1.09523,1825.5,1825.4,1.7344]
[1745840667619,2.73808,1825.5,1825.1,1.09538]
[1745840667818,1.0954,1825.2,1825.1,2.82978]
[1745840668020,1.0954,1825.2,1825.1,46.83758]
[1745840668222,2.74071,1825.4,1825.3,1.09532]
[1745840668520,1.09525,1825.5,1825.4,1.0952]
[1745840668722,5.77925,1825.5,1825.4,1.0952]
[1745840669115,1.09526,1825.4,1825.3,2.82968]
[1745840669824,1.09526,1825.4,1825.3,1.7344]
[1745840670217,5.82522,1825.5,1825.3,5.5364]
[1745840670420,1.09526,1825.4,1825.3,3.802]
[1745840670627,2.77126,1825.4,1825.3,3.802]
[1745840671119,1.676,1825.4,1825.0,3.59006]
[1745840671325,1.09544,1825.1,1825.0,1.89096]
[1745840671523,1.09544,1825.1,1825.0,3.59006]
[1745840671918,2.77142,1825.2,1825.1,1.09544]
[1745840672118,1.676,1825.2,1825.1,1.09544]
[1745840672415,2.77138,1825.2,1825.1,1.09544]
[1745840672818,1.09544,1825.1,1825.0,6.59655]
[1745840673123,5.82644,1825.1,1825.0,3.802]
[1745840674220,1.09562,1824.8,1824.7,1.09563]
[1745840674423,1.6421,1825.0,1824.8,1.09558]
[1745840674626,1.09556,1824.9,1824.8,1.09558]
[1745840674922,1.6421,1825.0,1824.9,1.09556]
[1745840674923,3.12628,1825.0,1824.9,1.09556]
[1745840675131,4.99426,1825.0,1824.9,1.09556]
[1745840675434,4.99426,1825.0,1824.8,4.89759]
[1745840675435,1.09556,1824.9,1824.8,4.89759]
[1745840675627,2.73766,1824.9,1824.8,3.802]
[1745840675923,2.73766,1824.9,1824.8,4.89762]
[1745840676117,1.6421,1824.9,1824.6,4.30351]
[1745840676321,1.09568,1824.7,1824.6,4.30351]
[1745840676529,4.731,1824.7,1824.3,6.77599]
[1745840676727,2.76421,1824.6,1824.5,1.09578]
[1745840676932,1.0958,1824.5,1824.4,2.78592]
[1745840677123,2.7642,1824.5,1824.4,2.78592]
[1745840677530,1.09586,1824.4,1824.3,5.13208]
[1745840677725,1.09592,1824.3,1824.2,1.09597]
[1745840678027,4.731,1824.3,1824.2,1.09598]
[1745840678329,5.82692,1824.3,1824.2,3.802]
[1745840679132,5.82692,1824.3,1824.2,1.09598]
[1745840679332,4.731,1824.3,1824.2,1.09598]
[1745840679525,3.2078,1824.6,1824.1,5.9478]
[1745840679728,2.7239,1824.6,1824.5,1.0958]
[1745840680031,1.09584,1824.5,1824.4,1.09581]
[1745840680228,1.09584,1824.5,1824.4,6.58181]
[1745840680428,2.72394,1824.5,1824.4,6.58181]
[1745840680627,1.6281,1824.5,1824.4,6.58181]
[1745840680927,2.7239,1824.5,1824.4,3.802]
[1745840682232,1.6281,1824.5,1824.2,2.77993]
[1745840682430,4.36765,1824.5,1824.2,1.09594]
[1745840682630,1.09598,1824.2,1824.1,4.30379]
[1745840683024,1.09598,1824.2,1824.1,3.2078]
[1745840683225,1.09604,1824.1,1824.0,6.57776]
[1745840683424,2.77044,1824.1,1824.0,6.57776]
[1745840683625,1.6744,1824.1,1824.0,6.57776]
[1745840683825,2.77044,1824.1,1824.0,6.57776]
[1745840685428,5.829,1824.2,1824.1,1.09604]
[1745840685827,1.09604,1824.1,1824.0,6.57775]
[1745840686429,5.82904,1824.2,1824.1,1.09604]
[1745840686628,1.09604,1824.1,1824.0,6.57776]
[1745840686831,1.09604,1824.1,1824.0,3.802]
[1745840687132,1.09616,1823.9,1823.8,1.93381]
[1745840687729,1.09626,1823.8,1823.7,1.09623]
[1745840688125,1.09626,1823.8,1823.7,4.89823]
[1745840688325,5.83026,1823.8,1823.7,3.802]
[1745840689825,10.83026,1823.8,1823.7,3.802]
[1745840690225,1.0964,1823.5,1823.4,1.09646]
[1745840690425,1.0964,1823.5,1823.4,2.77976]
[1745840691035,1.09639,1823.6,1823.5,1.09639]
[1745840691239,1.09639,1823.6,1823.5,4.89839]
[1745840691526,3.4898,1823.9,1823.5,3.802]
[1745840691734,5.83126,1823.8,1823.7,1.09626]
[1745840692229,5.83126,1823.8,1823.7,4.89826]
[1745840692433,1.09626,1823.8,1823.7,3.802]
[1745840692627,5.83126,1823.8,1823.7,4.89828]
[1745840693027,5.83126,1823.8,1823.7,3.802]
[1745840693231,1.09634,1823.6,1823.5,3.2078]
[1745840693538,1.09634,1823.6,1823.5,4.3042]
[1745840693727,1.09632,1823.7,1823.6,1.0963]
[1745840694931,1.09634,1823.6,1823.5,7.0098]
[1745840695127,1.09634,1823.6,1823.5,4.3042]
[1745840696122,1.09634,1823.6,1823.5,3.802]
[1745840697233,1.09646,1823.4,1823.3,9.74118]
[1745840697735,1.09646,1823.4,1823.3,8.10628]
[1745840698028,5.83246,1823.4,1823.3,3.802]
[1745840699129,4.14136767,1823.4,1823.3,1.09652]
[1745840699346,6.88261767,1823.4,1823.1,1.0966]
[1745840699530,1.09652,1823.3,1823.2,1.5718]
[1745840700236,1.09652,1823.3,1823.2,2.66838]
[1745840700639,4.3043,1823.4,1823.3,1.09652]
[1745840700938,8.8253,1823.4,1823.3,1.09652]
[1745840701135,8.8253,1823.4,1823.3,4.89852]
[1745840701337,1.09645,1823.5,1823.4,1.09646]
[1745840701538,5.61745,1823.5,1823.4,2.83716]
[1745840702230,1.09639,1823.6,1823.5,1.09635]
[1745840702537,5.61739,1823.6,1823.5,2.83705]
[1745840703141,5.61739,1823.6,1823.5,6.63905]
[1745840703340,0.0578,1823.7,1823.6,1.09634]
[1745840703538,3.623,1823.9,1823.8,1.09622]
[1745840703737,3.623,1823.9,1823.7,2.78734]
[1745840703937,1.09622,1823.8,1823.7,2.78738]
[1745840704139,1.09622,1823.8,1823.7,47.38938]
[1745840704339,1.09622,1823.8,1823.7,5.4931]
[1745840704837,1.09622,1823.8,1823.7,6.58934]
[1745840705031,1.09622,1823.8,1823.7,6.58938]
[1745840706649,6.3812,1823.9,1823.7,5.4931]
[1745840706946,1.09622,1823.8,1823.7,6.58933]
[1745840708247,6.7686,1823.9,1823.8,1.09622]
[1745840708445,11.2896,1823.9,1823.8,1.09622]
[1745840708842,1.09622,1823.8,1823.7,4.89824]
[1745840709037,2.75632,1823.8,1823.7,3.802]
[1745840709242,1.09628,1823.7,1823.6,6.00262]
[1745840710445,1.09628,1823.7,1823.6,1.6985]
[1745840710647,1.09634,1823.6,1823.5,4.89836]
[1745840710847,1.09634,1823.6,1823.5,4.8984]
[1745840712345,1.6601,1823.8,1823.5,3.802]
[1745840712546,5.61728,1823.7,1823.6,2.73154]
[1745840713247,4.521,1823.7,1823.6,2.73154]
[1745840713451,1.48502,1823.8,1823.7,1.09628]
[1745840713647,1.09634,1823.6,1823.5,3.802]
[1745840713844,1.09634,1823.6,1823.5,4.89838]
[1745840714043,1.6172,1823.7,1823.6,1.09634]
[1745840714449,2.71348,1823.7,1823.6,1.09634]
[1745840714652,1.6172,1823.7,1823.6,1.09634]
[1745840715150,6.00602,1823.8,1823.7,1.09628]
[1745840715552,4.521,1823.8,1823.7,1.09628]
[1745840715751,5.61722,1823.8,1823.7,1.09628]
[1745840715941,4.521,1823.8,1823.7,1.09628]
[1745840716139,4.521,1823.8,1823.7,4.89828]
[1745840716352,5.61722,1823.8,1823.7,4.89828]
[1745840716546,3.6235,1823.9,1823.8,1.09622]
[1745840716745,9.24066,1823.9,1823.8,2.67462]
[1745840716947,5.61716,1823.9,1823.8,2.67462]
[1745840717152,5.61716,1823.9,1823.8,6.47662]
[1745840717460,1.09616,1823.9,1823.8,6.47662]
[1745840717647,5.61716,1823.9,1823.8,6.47662]
[1745840718048,2.73983,1824.3,1823.9,2.74032]
[1745840718346,5.61704,1824.1,1824.0,2.2857]
[1745840718554,1.0961,1824.0,1823.9,2.78315]
[1745840718752,4.521,1824.1,1824.0,1.0961]
[1745840719059,5.61709,1824.1,1824.0,1.0961]
[1745840719349,1.09603,1824.2,1824.1,1.09599]
[1745840719561,5.61703,1824.2,1824.1,1.09599]
[1745840720649,7.20383,1824.2,1824.1,1.09599]
[1745840721258,8.1441,1824.3,1824.2,1.09598]
[1745840721459,9.24002,1824.3,1824.2,1.09598]
[1745840721659,10.82682,1824.3,1824.2,1.09598]
[1745840722056,1.09602,1824.2,1824.1,1.09599]
[1745840722257,1.0961,1824.1,1824.0,1.09606]
[1745840722661,1.7033,1824.2,1824.1,1.09604]
[1745840723561,1.7033,1824.2,1824.1,2.81474]
[1745840724054,2.79928,1824.2,1824.1,2.81474]
[1745840724364,2.79928,1824.2,1824.1,1.09604]
[1745840725855,1.7033,1824.2,1824.0,3.802]
[1745840726057,2.79933,1824.2,1824.1,1.09604]